[Event "Catalan University-ch 2024"]
[Site "Barcelona"]
[Date "2024.02.24"]
[Round "3.5"]
[White "Gonzalez Diaz, Penelope"]
[Black "Travesset Sagre, Jan"]
[Result "0-1"]
[ECO "D02"]
[WhiteElo "1893"]
[BlackElo "2193"]
[Annotator "RC"]
[PlyCount "87"]
[EventDate "2024.02.24"]
[EventCountry "ESP"]
[SourceTitle "playchess.com"]
[Source "ChessBase"]
[SourceQuality "1"]
[TimeControl "600+2"]

1. d4 {[%emt 0:00:02]} d5 {[%emt 0:00:02]} 2. Nf3 {[%emt 0:00:00]} Nf6 {[%emt 0:00:01]} 3. Bf4 {[%emt 0:00:01]} e6 {[%emt 0:00:05]} 4. e3 {[%emt 0:00:03]} Bd6 {[%emt 0:00:01]} 5. Ne5 {[%emt 0:00:01]} Nfd7 {[%emt 0:02:21]} 6. c3 {[%emt 0:00:49]} Bxe5 {[%emt 0:01:00]} 7. dxe5 {[%emt 0:00:04]} c5 {[%emt 0:01:15]} 8. Qg4 {[%emt 0:00:16]} Kf8 {[%emt 0:00:11]} 9. Nd2 {[%emt 0:00:58]} h5 {[%emt 0:01:53]} 10. Qg3 {[%emt 0:00:45]} h4 {[%emt 0:00:14]} 11. Qg4 {[%emt 0:00:04]} Nc6 {[%emt 0:00:01]} 12. Nf3 {[%emt 0:00:24]} Qc7 {[%emt 0:00:12]} 13. Nxh4 {[%emt 0:00:56]} Ndxe5 {[%emt 0:00:13]} 14. Qg3 {[%emt 0:00:20]} Bd7 {[%emt 0:00:58]} 15. Nf3 {[%emt 0:01:40]} Nxf3+ {[%emt 0:00:05]} 16. Qxf3 {[%emt 0:00:01]} e5 {[%emt 0:00:13]} 17. Bg3 {[%emt 0:00:05]} Be6 {[%emt 0:00:13]} 18. Bb5 {[%emt 0:00:24]} Ne7 {[%emt 0:00:06]} 19. Rd1 {[%emt 0:00:13]} Rd8 {[%emt 0:00:22]} 20. O-O {[%emt 0:00:05]} a6 {[%emt 0:00:18]} 21. Be2 {[%emt 0:00:09]} Nf5 {[%emt 0:00:23]} 22. e4 {[%emt 0:00:23]} Nxg3 {[%emt 0:00:06]} 23. fxg3 {[%emt 0:00:02]} d4 {[%emt 0:00:01]} 24. cxd4 {[%emt 0:00:05]} Rxd4 {[%emt 0:00:06]} 25. Rc1 {[%emt 0:00:05]} b5 {[%emt 0:00:08]} 26. b3 {[%emt 0:00:05]} Ke7 {[%emt 0:00:17]} 27. Qe3 {[%emt 0:00:06]} f6 {[%emt 0:00:02]} 28. Rfd1 {[%emt 0:00:09]} Rhd8 {[%emt 0:00:05]} 29. g4 {[%emt 0:00:22]} Rxd1+ {[%emt 0:00:03]} 30. Rxd1 {[%emt 0:00:01]} Rxd1+ {[%emt 0:00:01]} 31. Bxd1 {[%emt 0:00:01]} Qd6 {[%emt 0:00:01]} 32. Be2 {[%emt 0:00:05]} Qd4 {[%emt 0:00:04]} 33. Kf2 {[%emt 0:00:11]} c4 {[%emt 0:00:04]} 34. bxc4 {[%emt 0:00:06]} Bxc4 {[%emt 0:00:02]} 35. Kf3 {[%emt 0:00:21]} Qxe3+ {[%emt 0:00:01]} 36. Kxe3 {[%emt 0:00:01]} Bxe2 {[%emt 0:00:01]} 37. Kxe2 {[%emt 0:00:01]} Kd6 {[%emt 0:00:04]} 38. h4 {[%emt 0:00:04]} Kc5 {[%emt 0:00:01]} 39. Kd3 {[%emt 0:00:02]} a5 {[%emt 0:00:02]} 40. a3 {[%emt 0:00:27]} b4 {[%emt 0:00:02]} 41. a4 {[%emt 0:00:20]} b3 {[%emt 0:00:01]} 42. Kc3 {[%emt 0:00:02]} b2 {[%emt 0:00:00]} 43. Kxb2 {[%emt 0:00:01]} Kb4 {[%emt 0:00:01]} 44. Kc2 {[%emt 0:01:01]} 0-1

[Event "Catalan University-ch 2024"]
[Site "Barcelona"]
[Date "2024.02.24"]
[Round "3.6"]
[White "Ros Alonso, Joana"]
[Black "Ruiz Lupon, Neri"]
[Result "1-0"]
[ECO "C13"]
[WhiteElo "2033"]
[BlackElo "1968"]
[Annotator "NA RC"]
[PlyCount "51"]
[EventDate "2024.02.24"]
[EventCountry "ESP"]
[SourceTitle "playchess.com"]
[Source "ChessBase"]
[SourceQuality "1"]
[TimeControl "600+2"]

1. e4 {[%emt 0:00:03]} e6 {[%emt 0:00:01]} 2. d4 {[%emt 0:00:01]} d5 {[%emt 0:00:01]} 3. Nd2 {[%emt 0:00:05]} dxe4 {[%emt 0:00:10]} 4. Nxe4 {[%emt 0:00:01]} Nf6 {[%emt 0:00:02]} 5. Bg5 {[%emt 0:00:03]} Be7 {[%emt 0:00:01]} 6. Nxf6+ {[%emt 0:00:02]} Bxf6 {[%emt 0:00:01]} 7. Bxf6 {[%emt 0:00:02]} Qxf6 {[%emt 0:00:02]} 8. Nf3 {[%emt 0:00:07]} O-O {[%emt 0:00:06]} 9. Bd3 {[%emt 0:00:06]} Rd8 {[%emt 0:00:12]} 10. c3 {[%emt 0:00:06]} Nc6 {[%emt 0:00:05]} 11. Qc2 {[%emt 0:00:06]} h6 {[%emt 0:00:05]} 12. O-O-O {[%emt 0:00:08]} Ne7 {[%emt 0:01:00]} 13. Kb1 {[%emt 0:00:13]} Bd7 {[%emt 0:00:04]} 14. Ne5 {[%emt 0:00:07]} Nd5 {[%emt 0:00:13]} 15. h4 {[%emt 0:00:58]} Be8 {[%emt 0:00:33]} 16. g4 {[%emt 0:00:05]} Qf4 {[%emt 0:00:20]} 17. Rde1 {[%emt 0:01:02]} Nf6 {[%emt 0:00:54]} 18. g5 {[%emt 0:00:10]} hxg5 {[%emt 0:00:12]} 19. hxg5 {[%emt 0:00:02]} Qxg5 {[%emt 0:00:14]} 20. f4 {[%emt 0:00:37]} Qxf4 {[%emt 0:00:39]} 21. Ref1 {[%emt 0:00:07]} Qe3 {[%emt 0:00:12]} 22. Qh2 {[%emt 0:00:41]} Kf8 {[%emt 0:00:10]} 23. Qh8+ {[%emt 0:00:18]} Ke7 {[%emt 0:00:33]} 24. Qxg7 {[%emt 0:00:07]} Ne4 {[%emt 0:00:24]} 25. Rxf7+ {[%emt 0:00:34]} Bxf7 {[%emt 0:00:22]} 26. Qxf7+ {[%emt 0:00:02]} 1-0

[Event "Catalan University-ch 2024"]
[Site "Barcelona"]
[Date "2024.02.24"]
[Round "3.7"]
[White "Alcon Llosada, Alex"]
[Black "Martinez Lopez, Carlos"]
[Result "0-1"]
[ECO "A95"]
[WhiteElo "1832"]
[BlackElo "2006"]
[Annotator "NA RC"]
[PlyCount "80"]
[EventDate "2024.02.24"]
[EventCountry "ESP"]
[SourceTitle "playchess.com"]
[Source "ChessBase"]
[SourceQuality "1"]
[TimeControl "600+2"]

1. d4 {[%emt 0:00:03]} f5 {[%emt 0:00:02]} 2. c4 {[%emt 0:00:01]} e6 {[%emt 0:00:02]} 3. g3 {[%emt 0:00:01]} Nf6 {[%emt 0:00:01]} 4. Bg2 {[%emt 0:00:01]} Be7 {[%emt 0:00:11]} 5. Nc3 {[%emt 0:00:10]} O-O {[%emt 0:00:08]} 6. Nf3 {[%emt 0:00:06]} d5 {[%emt 0:00:07]} 7. O-O {[%emt 0:00:07]} b6 {[%emt 0:00:04]} 8. cxd5 {[%emt 0:00:15]} exd5 {[%emt 0:00:05]} 9. Bf4 {[%emt 0:00:09]} Kh8 {[%emt 0:01:02]} 10. Rc1 {[%emt 0:00:13]} c6 {[%emt 0:00:14]} 11. Qa4 {[%emt 0:00:24]} Bd7 {[%emt 0:00:07]} 12. Ne5 {[%emt 0:00:04]} b5 {[%emt 0:00:22]} 13. Qc2 {[%emt 0:00:06]} Na6 {[%emt 0:00:19]} 14. a3 {[%emt 0:00:05]} Rc8 {[%emt 0:00:05]} 15. Qd3 {[%emt 0:00:15]} Nc7 {[%emt 0:00:06]} 16. Nd1 {[%emt 0:00:11]} Ne6 {[%emt 0:00:05]} 17. Bd2 {[%emt 0:00:24]} Ne4 {[%emt 0:00:26]} 18. Nc3 {[%emt 0:00:56]} Be8 {[%emt 0:00:34]} 19. Qc2 {[%emt 0:01:17]} Nxd4 {[%emt 0:00:31]} 20. Qd1 {[%emt 0:00:01]} Nxd2 {[%emt 0:00:13]} 21. Qxd2 {[%emt 0:00:17]} Nb3 {[%emt 0:00:01]} 22. Qc2 {[%emt 0:01:11]} Nxc1 {[%emt 0:00:04]} 23. Rxc1 {[%emt 0:00:02]} Bf6 {[%emt 0:00:14]} 24. Qxf5 {[%emt 0:00:16]} Rc7 {[%emt 0:01:01]} 25. g4 {[%emt 0:00:55]} Qd6 {[%emt 0:00:10]} 26. f4 {[%emt 0:01:20]} Bxe5 {[%emt 0:04:40]} 27. fxe5 {[%emt 0:00:14]} Qe7 {[%emt 0:00:00]} 28. Nxd5 {[%emt 0:00:10]} Rxf5 {[%emt 0:00:00]} 29. Nxe7 {[%emt 0:00:02]} Rxe5 {[%emt 0:00:00]} 30. Nxc6 {[%emt 0:01:22]} Rxe2 {[%emt 0:00:00]} 31. Rf1 {[%emt 0:00:06]} Rxg2+ {[%emt 0:00:00]} 32. Kh1 {[%emt 0:00:17]} Rf2 {[%emt 0:00:00]} 33. Rxf2 {[%emt 0:00:01]} Bxc6+ {[%emt 0:00:00]} 34. Kg1 {[%emt 0:00:01]} Kg8 {[%emt 0:00:00]} 35. Rd2 {[%emt 0:00:01]} Kf7 {[%emt 0:00:00]} 36. h4 {[%emt 0:00:02]} a5 {[%emt 0:00:00]} 37. Kf2 {[%emt 0:00:01]} a4 {[%emt 0:00:00]} 38. Kg3 {[%emt 0:00:02]} Ke6 {[%emt 0:00:00]} 39. g5 {[%emt 0:00:05]} Rf7 {[%emt 0:00:00]} 40. Rc2 {[%emt 0:00:08]} Ke5 {[%emt 0:00:28]} 0-1

[Event "Catalan University-ch 2024"]
[Site "Barcelona"]
[Date "2024.02.24"]
[Round "3.8"]
[White "Gomez Navais, Marcal"]
[Black "Alberti Carrasco, Pau"]
[Result "1-0"]
[ECO "B32"]
[WhiteElo "2081"]
[BlackElo "1446"]
[Annotator "NA RC"]
[PlyCount "75"]
[EventDate "2024.02.24"]
[EventCountry "ESP"]
[SourceTitle "playchess.com"]
[Source "ChessBase"]
[SourceQuality "1"]
[TimeControl "600+2"]

1. e4 {[%emt 0:00:02]} c5 {[%emt 0:00:00]} 2. Nf3 {[%emt 0:00:01]} Nc6 {[%emt 0:00:02]} 3. d4 {[%emt 0:00:01]} cxd4 {[%emt 0:00:01]} 4. Nxd4 {[%emt 0:00:01]} e5 {[%emt 0:00:01]} 5. Nb5 {[%emt 0:00:01]} d6 {[%emt 0:00:01]} 6. N1c3 {[%emt 0:00:02]} a6 {[%emt 0:00:01]} 7. Na3 {[%emt 0:00:01]} b5 {[%emt 0:00:20]} 8. Nd5 {[%emt 0:00:01]} Be6 {[%emt 0:00:01]} 9. c3 {[%emt 0:00:40]} Be7 {[%emt 0:00:02]} 10. Be3 {[%emt 0:00:10]} Rb8 {[%emt 0:00:16]} 11. Nc2 {[%emt 0:00:15]} Nf6 {[%emt 0:00:02]} 12. Nxf6+ {[%emt 0:00:29]} Bxf6 {[%emt 0:00:10]} 13. Be2 {[%emt 0:00:10]} O-O {[%emt 0:00:23]} 14. Bf3 {[%emt 0:00:06]} Qd7 {[%emt 0:00:29]} 15. O-O {[%emt 0:00:07]} Rfd8 {[%emt 0:00:01]} 16. Qe2 {[%emt 0:00:28]} Bc4 {[%emt 0:00:02]} 17. Qe1 {[%emt 0:00:02]} Bxf1 {[%emt 0:00:02]} 18. Qxf1 {[%emt 0:00:00]} Qe7 {[%emt 0:00:14]} 19. Bd2 {[%emt 0:00:14]} Bg5 {[%emt 0:00:33]} 20. Rd1 {[%emt 0:00:24]} h6 {[%emt 0:00:06]} 21. g3 {[%emt 0:00:07]} Qf6 {[%emt 0:00:05]} 22. Bg2 {[%emt 0:00:14]} Bxd2 {[%emt 0:00:06]} 23. Rxd2 {[%emt 0:00:00]} Na5 {[%emt 0:00:40]} 24. Ne3 {[%emt 0:00:22]} Rbc8 {[%emt 0:00:28]} 25. Nd5 {[%emt 0:00:04]} Qe6 {[%emt 0:00:08]} 26. Bh3 {[%emt 0:00:02]} Qe8 {[%emt 0:00:15]} 27. Bxc8 {[%emt 0:00:04]} Rxc8 {[%emt 0:00:02]} 28. Qe2 {[%emt 0:00:19]} Nc4 {[%emt 0:00:01]} 29. Rd1 {[%emt 0:00:01]} Kh8 {[%emt 0:00:17]} 30. b3 {[%emt 0:00:28]} Na5 {[%emt 0:00:02]} 31. Qe3 {[%emt 0:00:08]} Qd8 {[%emt 0:00:57]} 32. Qa7 {[%emt 0:00:07]} Ra8 {[%emt 0:00:02]} 33. Qxf7 {[%emt 0:00:02]} Qg5 {[%emt 0:00:17]} 34. Ne7 {[%emt 0:00:17]} Qg4 {[%emt 0:00:14]} 35. Rxd6 {[%emt 0:00:17]} Qxe4 {[%emt 0:00:03]} 36. Rxh6+ {[%emt 0:00:27]} gxh6 {[%emt 0:00:08]} 37. Ng6+ {[%emt 0:00:01]} Qxg6 {[%emt 0:00:06]} 38. Qxg6 {[%emt 0:00:01]} 1-0

[Event "Catalan University-ch 2024"]
[Site "Barcelona"]
[Date "2024.02.24"]
[Round "3.9"]
[White "Vinolas Anglada, Laura"]
[Black "Sole Pijuan, Ferran"]
[Result "0-1"]
[ECO "C54"]
[WhiteElo "1876"]
[BlackElo "2136"]
[Annotator "RC"]
[PlyCount "60"]
[EventDate "2024.02.24"]
[EventCountry "ESP"]
[SourceTitle "playchess.com"]
[Source "ChessBase"]
[SourceQuality "1"]
[TimeControl "600+2"]

1. e4 {[%emt 0:00:02]} e5 {[%emt 0:00:01]} 2. Nf3 {[%emt 0:00:01]} Nc6 {[%emt 0:00:01]} 3. Bc4 {[%emt 0:00:01]} Nf6 {[%emt 0:00:04]} 4. d3 {[%emt 0:00:02]} Bc5 {[%emt 0:00:07]} 5. c3 {[%emt 0:00:04]} a6 {[%emt 0:00:01]} 6. a4 {[%emt 0:00:04]} d6 {[%emt 0:00:02]} 7. O-O {[%emt 0:00:04]} Ba7 {[%emt 0:00:02]} 8. Re1 {[%emt 0:00:16]} h6 {[%emt 0:00:06]} 9. Nbd2 {[%emt 0:00:11]} g5 {[%emt 0:00:09]} 10. Nf1 {[%emt 0:00:09]} Nh7 {[%emt 0:00:18]} 11. Be3 {[%emt 0:00:10]} g4 {[%emt 0:00:06]} 12. N3d2 {[%emt 0:00:04]} h5 {[%emt 0:00:24]} 13. b4 {[%emt 0:00:15]} Qf6 {[%emt 0:00:51]} 14. b5 {[%emt 0:00:13]} Ne7 {[%emt 0:00:02]} 15. bxa6 {[%emt 0:00:04]} bxa6 {[%emt 0:00:01]} 16. Bxa7 {[%emt 0:00:23]} Rxa7 {[%emt 0:00:01]} 17. Ne3 {[%emt 0:00:07]} Ng5 {[%emt 0:00:14]} 18. Nd5 {[%emt 0:00:09]} Nxd5 {[%emt 0:00:04]} 19. exd5 {[%emt 0:00:21]} h4 {[%emt 0:02:09]} 20. Nf1 {[%emt 0:01:53]} h3 {[%emt 0:01:35]} 21. Re3 {[%emt 0:00:36]} hxg2 {[%emt 0:00:07]} 22. Kxg2 {[%emt 0:00:18]} Nf3 {[%emt 0:00:31]} 23. d4 {[%emt 0:00:37]} Qf4 {[%emt 0:00:30]} 24. Rxf3 {[%emt 0:01:06]} gxf3+ {[%emt 0:00:01]} 25. Kh1 {[%emt 0:00:43]} Bh3 {[%emt 0:00:42]} 26. Qb3 {[%emt 0:01:51]} Ra8 {[%emt 0:00:26]} 27. Qb7 {[%emt 0:00:12]} Rd8 {[%emt 0:00:25]} 28. Qc6+ {[%emt 0:00:30]} Bd7 {[%emt 0:00:32]} 29. Qxc7 {[%emt 0:00:16]} Qg4 {[%emt 0:00:07]} 30. Ne3 {[%emt 0:00:20]} Qh3 {[%emt 0:01:23]} 0-1

[Event "Catalan University-ch 2024"]
[Site "Barcelona"]
[Date "2024.02.24"]
[Round "3.10"]
[White "Sayrol Clols, Josep Maria"]
[Black "Canyelles Sureda, Joan"]
[Result "1-0"]
[ECO "B22"]
[WhiteElo "1991"]
[BlackElo "1589"]
[Annotator "NA RC"]
[PlyCount "61"]
[EventDate "2024.02.24"]
[EventCountry "ESP"]
[SourceTitle "playchess.com"]
[Source "ChessBase"]
[SourceQuality "1"]
[TimeControl "600+2"]

1. e4 {[%emt 0:00:02]} c5 {[%emt 0:00:02]} 2. c3 {[%emt 0:00:02]} d6 {[%emt 0:00:02]} 3. d4 {[%emt 0:00:02]} cxd4 {[%emt 0:00:02]} 4. cxd4 {[%emt 0:00:02]} Nf6 {[%emt 0:00:02]} 5. Nc3 {[%emt 0:00:02]} g6 {[%emt 0:00:02]} 6. Nf3 {[%emt 0:00:02]} e6 {[%emt 0:00:02]} 7. Bc4 {[%emt 0:00:02]} Bg7 {[%emt 0:00:02]} 8. O-O {[%emt 0:00:02]} O-O {[%emt 0:00:02]} 9. Bg5 {[%emt 0:00:02]} Qc7 {[%emt 0:00:02]} 10. Bb3 {[%emt 0:00:02]} a6 {[%emt 0:00:02]} 11. Rc1 {[%emt 0:00:02]} Qd7 {[%emt 0:00:02]} 12. Re1 {[%emt 0:00:02]} b5 {[%emt 0:00:02]} 13. Qe2 {[%emt 0:00:02]} Bb7 {[%emt 0:00:02]} 14. e5 {[%emt 0:00:23]} dxe5 {[%emt 0:00:18]} 15. dxe5 {[%emt 0:00:09]} Ng4 {[%emt 0:00:17]} 16. Red1 {[%emt 0:00:38]} Qc6 {[%emt 0:01:56]} 17. Nd5 {[%emt 0:00:32]} Qe8 {[%emt 0:02:46]} 18. Nc7 {[%emt 0:00:08]} Bxf3 {[%emt 0:00:36]} 19. Qxf3 {[%emt 0:00:15]} Nxe5 {[%emt 0:00:20]} 20. Qxa8 {[%emt 0:00:09]} Qc8 {[%emt 0:00:37]} 21. Nxe6 {[%emt 0:00:29]} Nbc6 {[%emt 0:00:07]} 22. Qxc8 {[%emt 0:00:49]} Rxc8 {[%emt 0:00:02]} 23. Nd4 {[%emt 0:00:45]} h6 {[%emt 0:01:07]} 24. Nxc6 {[%emt 0:00:08]} Nxc6 {[%emt 0:00:07]} 25. Bd5 {[%emt 0:01:07]} hxg5 {[%emt 0:00:18]} 26. Rxc6 {[%emt 0:00:08]} Rxc6 {[%emt 0:00:02]} 27. Bxc6 {[%emt 0:00:02]} Bxb2 {[%emt 0:00:04]} 28. Bb7 {[%emt 0:00:08]} a5 {[%emt 0:00:05]} 29. Rd5 {[%emt 0:00:02]} a4 {[%emt 0:00:15]} 30. Rxb5 {[%emt 0:00:06]} f6 {[%emt 0:00:26]} 31. Rxb2 {[%emt 0:04:40]} 1-0

[Event "Catalan University-ch 2024"]
[Site "Barcelona"]
[Date "2024.02.24"]
[Round "4.1"]
[White "Adan Bermudez, Sergio"]
[Black "Ros Alonso, Joana"]
[Result "1-0"]
[ECO "A16"]
[WhiteElo "2299"]
[BlackElo "2033"]
[Annotator "TA"]
[PlyCount "69"]
[EventDate "2024.02.24"]
[EventCountry "ESP"]
[SourceTitle "playchess.com"]
[Source "ChessBase"]
[SourceQuality "1"]
[TimeControl "600+2"]

{[%evp 10,69,31,19,59,18,22,21,64,37,165,175,194,189,191,172,212,200,203,200,245,224,245,233,374,377,372,232,454,222,243,250,291,289,295,290,262,231,301,72,221,222,205,225,597,-193,214,126,126,102,96,92,416,425,403,404,1199,1131,2452,2153,2064,2052]} 1. c4 {[%emt 0:00:02]} Nf6 {[%emt 0:00:02]} 2. Nc3 {[%emt 0:00:02]} d5 {[%emt 0:00:01]} 3. cxd5 {[%emt 0:00:02]} Nxd5 {[%emt 0:00:01]} 4. g3 {[%emt 0:00:09]} g6 {[%emt 0:00:02]} 5. Bg2 {[%emt 0:00:02]} Nb6 {[%emt 0:00:02]} 6. h4 {[%emt 0:00:13]} h6 {[%emt 0:00:23]} 7. d3 {[%emt 0:00:06]} Bg7 {[%emt 0:00:02]} 8. Bd2 {[%emt 0:00:04]} c5 {[%emt 0:00:06][%cal Bc7c5,Bc5c4][%mdl 32] The position is equal.} 9. a4 {[%emt 0:00:19]} Be6 {[%emt 0:00:34]} (9... Nc6 $14) 10. Bxb7 $18 {[%emt 0:00:18]} N8d7 {[%emt 0:00:06]} 11. Bxa8 {[%emt 0:01:17]} Qxa8 {[%emt 0:00:01]} 12. Nf3 {[%emt 0:00:18]} Ne5 {[%emt 0:00:50]} 13. Ne4 {[%emt 0:00:29]} c4 {[%emt 0:01:02]} 14. Bc3 {[%emt 0:01:14]} cxd3 {[%emt 0:00:49]} 15. Bxe5 {[%emt 0:01:04]} (15. exd3 Nxf3+ 16. Qxf3 Bxc3+ 17. bxc3 f5 $15) 15... Bxe5 {[%emt 0:00:10]} 16. Qxd3 {[%emt 0:00:06]} Bc4 {[%emt 0:00:38]} (16... Bg7 $142 17. Nc5 Bc4) 17. Qc2 {[%emt 0:00:30]} Bd5 {[%emt 0:00:24]} 18. Ned2 {[%emt 0:00:02] e4 would now be deadly.} O-O $2 {[%emt 0:05:25]} (18... Bg7 19. O-O O-O) 19. O-O {[%emt 0:00:13]} (19. e4 $142) 19... Rc8 {[%emt 0:00:00]} 20. Qb1 {[%emt 0:00:03]} Bd6 {[%emt 0:00:00]} 21. Rc1 {[%emt 0:00:36]} Rd8 {[%emt 0:00:00]} 22. a5 {[%emt 0:00:14]} Nd7 {[%emt 0:00:00]} 23. Nc4 {[%emt 0:00:36]} Bxf3 {[%emt 0:00:00]} 24. Nxd6 {[%emt 0:00:02]} (24. exf3 $18 {is the precise move to win. Hoping for Nxd6.} Qxf3 25. Rc3 (25. Nxd6 exd6 26. Rc3 Qa8 $18)) 24... Ne5 {[%emt 0:00:00] [#]} (24... exd6 $16 25. exf3 Ne5) 25. Nc4 $1 {[%emt 0:01:19]} (25. Nxf7 $6 Kxf7 26. Rc5 (26. exf3 $2 Nxf3+ 27. Kf1 Nd2+ 28. Kg1 Nxb1 $19) 26... Rd5) 25... Bh1 {[%emt 0:00:00]} 26. f3 {[%emt 0:00:08]} (26. Nxe5 $2 Qg2#) 26... Bxf3 $2 {[%emt 0:00:00]} (26... Nxf3+ {is tougher.} 27. exf3 Qxf3) 27. exf3 $4 {[%emt 0:00:30][%mdl 8192]} (27. Nxe5 $18 Bh1 28. Nf3 Bxf3 29. exf3) 27... Qxf3 $4 {[%emt 0:00:07][%mdl 8192] [#]} (27... Nxf3+ $19 {avoids the disaster.} 28. Kf2 Nd2 29. Nxd2 Rxd2+ 30. Ke3 Qd5 (30... Qg2 $2 31. Rc8+ Kg7 32. Qf1 $18) 31. Rc8+ (31. Qe4 $2 Re2+ 32. Kxe2 Qxe4+ 33. Kf2 Qd4+ 34. Kg2 Qxb2+ 35. Kh3 g5 $19) 31... Kh7) 28. Rc3 {[%emt 0:00:28]} (28. Nxe5 {is a self mate.} Qxg3+ 29. Kf1 Rd2 30. Rc8+ Kg7) (28. Ra3 $1 $18 {[%cal Ra3f3]} Nd3 29. Rc2 (29. Rxd3 $2 Rxd3 $19) 29... Qxg3+ 30. Rg2) 28... Nd3 $16 {[%emt 0:00:07]} 29. Qf1 {[%emt 0:00:11]} Qxg3+ {[%emt 0:00:02]} 30. Qg2 {[%emt 0:00:02]} Qc7 {[%emt 0:00:04][%mdl 8192]} (30... Qxh4 $16 31. Ne3 Nf4) 31. Rd1 $18 {[%emt 0:00:09]} Qc5+ {[%emt 0:00:02]} 32. Kh2 {[%emt 0:00:02]} Qc7+ {[%emt 0:00:01]} (32... Rd4 $142 33. Rdxd3 (33. Rcxd3 Rxc4 34. Qg3 Qxa5 $18) 33... Rxh4+ 34. Kg3 (34. Rh3 Rxc4 35. Rxc4 Qxc4 $18) 34... Rxc4 35. Rxc4 Qxc4 36. Rd8+ Kg7) 33. Qg3 {[%emt 0:00:02] White is clearly winning.} Ne5 {[%emt 0:00:02]} 34. Rxd8+ {[%emt 0:00:01]} Qxd8 35. Qxe5 {[%emt 0:00:02] Weighted Error Value: White=0.53/Black=0.99.  Loses game:     	---       	Black=1      Missed win:     	White=2     	Black=1      Mistake:       	White=2     	Black=6      Inaccurate:     	White=3     	Black=3      OK:         	White=11    	Black=7      Best:        	White=4     	Black=1      Strong:       	White=1     	---} 1-0

[Event "Catalan University-ch 2024"]
[Site "Barcelona"]
[Date "2024.02.24"]
[Round "4.2"]
[White "Garcia Escoda, Marc"]
[Black "Gomez Navais, Marcal"]
[Result "1-0"]
[ECO "B51"]
[WhiteElo "2074"]
[BlackElo "2081"]
[Annotator "NA"]
[PlyCount "97"]
[EventDate "2024.02.24"]
[EventCountry "ESP"]
[SourceTitle "playchess.com"]
[Source "ChessBase"]
[SourceQuality "1"]
[TimeControl "600+2"]

1. e4 {[%emt 0:00:00]} c5 {[%emt 0:00:01]} 2. Nf3 {[%emt 0:00:03]} d6 {[%emt 0:00:01]} 3. Bb5+ {[%emt 0:00:01]} Nd7 {[%emt 0:00:03]} 4. d4 {[%emt 0:00:01]} cxd4 {[%emt 0:00:01]} 5. Qxd4 {[%emt 0:00:01]} a6 {[%emt 0:10:06]} 6. Be2 {[%emt 0:00:02]} e5 {[%emt 0:00:00]} 7. Qe3 {[%emt 0:00:02]} Ngf6 {[%emt 0:00:00]} 8. O-O {[%emt 0:00:02]} Be7 {[%emt 0:00:00]} 9. c4 {[%emt 0:00:02]} O-O {[%emt 0:00:00]} 10. Nc3 {[%emt 0:00:01]} Nc5 {[%emt 0:00:00]} 11. Nd2 {[%emt 0:00:06]} Ne6 {[%emt 0:00:00]} 12. b3 {[%emt 0:00:18]} Nd4 {[%emt 0:00:00]} 13. Rb1 {[%emt 0:00:18]} Bd7 {[%emt 0:00:00]} 14. Bb2 {[%emt 0:00:06]} Rb8 {[%emt 0:00:00]} 15. Nd5 {[%emt 0:00:59]} Nxd5 {[%emt 0:00:00]} 16. cxd5 {[%emt 0:00:01]} Bg5 {[%emt 0:00:00]} 17. Qd3 {[%emt 0:00:21]} Bxd2 {[%emt 0:00:00]} 18. Bxd4 {[%emt 0:00:05]} Bg5 {[%emt 0:00:00]} 19. Be3 {[%emt 0:00:45]} f5 {[%emt 0:00:00]} 20. Bxg5 {[%emt 0:00:45]} Qxg5 {[%emt 0:00:00]} 21. Rbc1 {[%emt 0:00:37]} fxe4 {[%emt 0:00:00]} 22. Qxe4 {[%emt 0:00:01]} Bf5 {[%emt 0:00:00]} 23. Qe3 {[%emt 0:00:27]} Qxe3 {[%emt 0:00:00]} 24. fxe3 {[%emt 0:00:01]} Be4 {[%emt 0:00:00]} 25. Bf3 {[%emt 0:00:10]} Bd3 {[%emt 0:00:00]} 26. Rfd1 {[%emt 0:00:12]} e4 {[%emt 0:00:00]} 27. Bg4 {[%emt 0:00:01]} Rf6 {[%emt 0:00:00]} 28. Rc8+ {[%emt 0:00:55]} Rxc8 {[%emt 0:00:00]} 29. Bxc8 {[%emt 0:00:01]} b6 {[%emt 0:00:00]} 30. Rc1 {[%emt 0:00:07]} g6 {[%emt 0:00:00]} 31. h3 {[%emt 0:00:34]} Kg7 {[%emt 0:00:00]} 32. Be6 {[%emt 0:00:08]} Rf8 {[%emt 0:00:00]} 33. a3 {[%emt 0:00:30]} Kh6 {[%emt 0:00:00]} 34. b4 {[%emt 0:00:50]} a5 {[%emt 0:00:00]} 35. Rc6 {[%emt 0:00:10]} axb4 {[%emt 0:01:00]} 36. axb4 {[%emt 0:02:31]} Rf1+ {[%emt 0:00:02]} 37. Kh2 Re1 {[%emt 0:00:00]} 38. Rxd6 {[%emt 0:00:00]} b5 {[%emt 0:00:00]} 39. Ra6 {[%emt 0:00:00]} Bc4 {[%emt 0:00:00]} 40. Ra3 {[%emt 0:00:00]} Rd1 {[%emt 0:00:00]} 41. Kg3 {[%emt 0:00:00]} Bxd5 {[%emt 0:00:00]} 42. Bxd5 {[%emt 0:00:00]} Rxd5 {[%emt 0:00:00]} 43. Kf4 {[%emt 0:00:00]} Rd2 {[%emt 0:00:00]} 44. Ra5 {[%emt 0:00:00]} Rxg2 {[%emt 0:00:00]} 45. Rxb5 {[%emt 0:00:00]} Rh2 {[%emt 0:00:00]} 46. Kg3 {[%emt 0:00:00]} Re2 {[%emt 0:00:00]} 47. Kf4 {[%emt 0:00:00]} Rh2 {[%emt 0:00:01]} 48. Kg3 {[%emt 0:00:02]} Re2 {[%emt 0:00:02]} 49. Kf4 {[%emt 0:00:01]} 1-0